[Event "Titled Tuesday Blitz July 18 Late 2023"]
[White "gordonzyxu"]
[Black "Arnold, Ken"]
[BlackFideId "2056836"]
[WhiteElo "2083"]
[BlackElo "2425"]
[Result "0-1"]
[Round "4"]
[TimeControl "180+2"]
[Date "2023.07.18"]
[WhiteClock "0:00:00"]
[BlackClock "0:00:33"]
[Board "152"]

1. e4 {[%clk 0:03:00]}  c6 {[%clk 0:02:59]} 2. d4 {[%clk 0:03:00]}  d5 {[%clk 0:03:00]} 3. e5 {[%clk 0:03:01]}  Bf5 {[%clk 0:02:59]} 4. h4 {[%clk 0:03:02]}  h5 {[%clk 0:02:59]} 5. Bg5 {[%clk 0:03:00]}  Qb6 {[%clk 0:02:58]} 6. Bd3 {[%clk 0:02:59]}  Bxd3 {[%clk 0:02:57]} 7. Qxd3 {[%clk 0:02:59]}  e6 {[%clk 0:02:57]} 8. Nf3 {[%clk 0:02:58]}  c5 {[%clk 0:02:50]} 9. Nbd2 {[%clk 0:02:55]}  cxd4 {[%clk 0:02:49]} 10. Nxd4 {[%clk 0:02:49]}  Nc6 {[%clk 0:02:49]} 11. Nxc6 {[%clk 0:02:41]}  bxc6 {[%clk 0:02:48]} 12. O-O {[%clk 0:02:40]}  Ne7 {[%clk 0:02:47]} 13. c4 {[%clk 0:02:38]}  Nf5 {[%clk 0:02:45]} 14. cxd5 {[%clk 0:02:38]}  cxd5 {[%clk 0:02:45]} 15. Rac1 {[%clk 0:02:32]}  Bb4 {[%clk 0:02:36]} 16. Nb3 {[%clk 0:02:23]}  O-O {[%clk 0:02:34]} 17. Rfd1 {[%clk 0:02:15]}  Rfc8 {[%clk 0:02:30]} 18. Nd4 {[%clk 0:02:10]}  Nxd4 {[%clk 0:02:24]} 19. Rxc8+ {[%clk 0:02:07]}  Rxc8 {[%clk 0:02:23]} 20. Qxd4 {[%clk 0:02:07]}  Qxd4 {[%clk 0:02:13]} 21. Rxd4 {[%clk 0:02:07]}  Ba5 {[%clk 0:01:49]} 22. Rd3 {[%clk 0:01:41]}  Rc2 {[%clk 0:01:45]} 23. Rb3 {[%clk 0:01:34]}  Bb6 {[%clk 0:01:44]} 24. Be3 {[%clk 0:01:32]}  d4 {[%clk 0:01:41]} 25. Bf4 {[%clk 0:01:28]}  d3 {[%clk 0:01:35]} 26. Rxd3 {[%clk 0:01:14]}  Rxf2 {[%clk 0:01:34]} 27. Be3 {[%clk 0:01:01]}  Rxb2 {[%clk 0:01:23]} 28. Bxb6 {[%clk 0:01:00]}  axb6 {[%clk 0:01:21]} 29. Rd6 {[%clk 0:00:57]}  b5 {[%clk 0:01:13]} 30. Rb6 {[%clk 0:00:56]}  b4 {[%clk 0:01:14]} 31. Kh2 {[%clk 0:00:47]}  Kh7 {[%clk 0:01:12]} 32. Kg3 {[%clk 0:00:45]}  Kg6 {[%clk 0:01:11]} 33. Rb7 {[%clk 0:00:43]}  Rxa2 {[%clk 0:00:54]} 34. Rxb4 {[%clk 0:00:41]}  Re2 {[%clk 0:00:54]} 35. Rb5 {[%clk 0:00:26]}  Re4 {[%clk 0:00:53]} 36. Kh3 {[%clk 0:00:20]}  Rf4 {[%clk 0:00:50]} 37. g3 {[%clk 0:00:19]}  Rf5 {[%clk 0:00:50]} 38. g4 {[%clk 0:00:10]}  hxg4+ {[%clk 0:00:50]} 39. Kxg4 {[%clk 0:00:11]}  f6 {[%clk 0:00:48]} 40. Rb6 {[%clk 0:00:07]}  Rxe5 {[%clk 0:00:47]} 41. h5+ {[%clk 0:00:06]}  Rxh5 {[%clk 0:00:46]} 42. Rxe6 {[%clk 0:00:06]}  Ra5 {[%clk 0:00:46]} 43. Rb6 {[%clk 0:00:06]}  Ra4+ {[%clk 0:00:45]} 44. Kg3 {[%clk 0:00:06]}  Kg5 {[%clk 0:00:45]} 45. Rb5+ {[%clk 0:00:07]}  f5 {[%clk 0:00:44]} 46. Rb7 {[%clk 0:00:07]}  g6 {[%clk 0:00:44]} 47. Rb3 {[%clk 0:00:07]}  Rg4+ {[%clk 0:00:41]} 48. Kf3 {[%clk 0:00:06]}  Rh4 {[%clk 0:00:40]} 49. Rb2 {[%clk 0:00:04]}  Rh3+ {[%clk 0:00:39]} 50. Kg2 {[%clk 0:00:03]}  Ra3 {[%clk 0:00:39]} 51. Rb4 {[%clk 0:00:01]}  f4 {[%clk 0:00:38]} 52. Rb5+ {[%clk 0:00:01]}  Kg4 {[%clk 0:00:38]} 53. Rb4 {[%clk 0:00:02]}  g5 {[%clk 0:00:38]} 54. Rb2 {[%clk 0:00:02]}  Rg3+ {[%clk 0:00:37]} 55. Kh2 {[%clk 0:00:02]}  Rh3+ {[%clk 0:00:35]} 56. Kg2 {[%clk 0:00:02]}  f3+ {[%clk 0:00:35]} 57. Kg1 {[%clk 0:00:00]}  Kg3 {[%clk 0:00:33]} 0-1


[Site "https://www.chess.com"]

[Event "Titled Tuesday Blitz July 18 Late 2023"]
[White "Uzcategui Rodriguez, Alejandro"]
[Black "Vanek, Tomas"]
[WhiteFideId "3903400"]
[BlackFideId "313459"]
[WhiteElo "2418"]
[BlackElo "2165"]
[Result "1-0"]
[Round "4"]
[TimeControl "180+2"]
[Date "2023.07.18"]
[WhiteClock "0:00:28"]
[BlackClock "0:00:10"]
[Board "153"]

1. b3 {[%clk 0:03:00]}  e5 {[%clk 0:02:54]} 2. Bb2 {[%clk 0:03:01]}  f6 {[%clk 0:02:54]} 3. d4 {[%clk 0:02:58]}  d6 {[%clk 0:02:44]} 4. e4 {[%clk 0:02:56]}  Nc6 {[%clk 0:02:37]} 5. Nf3 {[%clk 0:02:54]}  Bg4 {[%clk 0:02:36]} 6. dxe5 {[%clk 0:02:53]}  dxe5 {[%clk 0:02:28]} 7. Qxd8+ {[%clk 0:02:30]}  Rxd8 {[%clk 0:02:27]} 8. Bb5 {[%clk 0:02:30]}  Ne7 {[%clk 0:02:22]} 9. a3 {[%clk 0:02:20]}  a6 {[%clk 0:02:22]} 10. Be2 {[%clk 0:02:19]}  Ng6 {[%clk 0:02:05]} 11. g3 {[%clk 0:02:15]}  Bh3 {[%clk 0:01:51]} 12. Nbd2 {[%clk 0:02:11]}  Bc5 {[%clk 0:01:47]} 13. b4 {[%clk 0:02:05]}  Ba7 {[%clk 0:01:42]} 14. Bf1 {[%clk 0:01:51]}  Bxf1 {[%clk 0:01:26]} 15. Rxf1 {[%clk 0:01:48]}  Nd4 {[%clk 0:01:19]} 16. Nxd4 {[%clk 0:01:46]}  Bxd4 {[%clk 0:01:14]} 17. Bxd4 {[%clk 0:01:46]}  Rxd4 {[%clk 0:01:11]} 18. Ke2 {[%clk 0:01:36]}  Ke7 {[%clk 0:01:09]} 19. c3 {[%clk 0:01:35]}  Rd7 {[%clk 0:01:06]} 20. Nc4 {[%clk 0:01:33]}  Rhd8 {[%clk 0:01:05]} 21. Rad1 {[%clk 0:01:30]}  b6 {[%clk 0:01:04]} 22. Ne3 {[%clk 0:01:29]}  c6 {[%clk 0:01:01]} 23. Rxd7+ {[%clk 0:01:18]}  Rxd7 {[%clk 0:01:00]} 24. Nf5+ {[%clk 0:01:15]}  Kf7 {[%clk 0:00:54]} 25. Rd1 {[%clk 0:01:14]}  Rxd1 {[%clk 0:00:53]} 26. Kxd1 {[%clk 0:01:15]}  Ne7 {[%clk 0:00:50]} 27. Nd6+ {[%clk 0:01:09]}  Ke6 {[%clk 0:00:50]} 28. Nc4 {[%clk 0:01:08]}  b5 {[%clk 0:00:47]} 29. Ne3 {[%clk 0:01:08]}  g6 {[%clk 0:00:40]} 30. Kd2 {[%clk 0:01:08]}  Nc8 {[%clk 0:00:37]} 31. c4 {[%clk 0:01:07]}  Nb6 {[%clk 0:00:36]} 32. Kc3 {[%clk 0:00:55]}  f5 {[%clk 0:00:26]} 33. f3 {[%clk 0:00:52]}  fxe4 {[%clk 0:00:26]} 34. fxe4 {[%clk 0:00:53]}  h5 {[%clk 0:00:23]} 35. c5 {[%clk 0:00:36]}  Nc8 {[%clk 0:00:23]} 36. Kd3 {[%clk 0:00:35]}  Ne7 {[%clk 0:00:23]} 37. Ng2 {[%clk 0:00:36]}  Ng8 {[%clk 0:00:23]} 38. Nh4 {[%clk 0:00:35]}  Ne7 {[%clk 0:00:21]} 39. Nf3 {[%clk 0:00:34]}  Kf6 {[%clk 0:00:20]} 40. h4 {[%clk 0:00:32]}  Ng8 {[%clk 0:00:12]} 41. Ng5 {[%clk 0:00:28]}  Nh6 {[%clk 0:00:12]} 42. Ke3 {[%clk 0:00:27]}  Ng4+ {[%clk 0:00:12]} 43. Kf3 {[%clk 0:00:27]}  Nh2+ {[%clk 0:00:12]} 44. Kg2 {[%clk 0:00:27]}  Ng4 {[%clk 0:00:12]} 45. Nh7+ {[%clk 0:00:26]}  Ke6 {[%clk 0:00:11]} 46. Nf8+ {[%clk 0:00:25]}  Kf7 {[%clk 0:00:09]} 47. Nd7 {[%clk 0:00:25]}  Ke6 {[%clk 0:00:07]} 48. Nb8 {[%clk 0:00:25]}  Ne3+ {[%clk 0:00:06]} 49. Kf3 {[%clk 0:00:24]}  Nc2 {[%clk 0:00:06]} 50. Nxc6 {[%clk 0:00:21]}  Nxa3 {[%clk 0:00:06]} 51. Nb8 {[%clk 0:00:21]}  Nc2 {[%clk 0:00:03]} 52. Nxa6 {[%clk 0:00:21]}  Kd7 {[%clk 0:00:03]} 53. Ke2 {[%clk 0:00:17]}  Kc8 {[%clk 0:00:03]} 54. c6 {[%clk 0:00:17]}  Nd4+ {[%clk 0:00:02]} 55. Kd3 {[%clk 0:00:17]}  Nxc6 {[%clk 0:00:02]} 56. Kc3 {[%clk 0:00:17]}  Kd7 {[%clk 0:00:01]} 57. Nc5+ {[%clk 0:00:18]}  Kd6 {[%clk 0:00:01]} 58. Nd3 {[%clk 0:00:18]}  Nd4 {[%clk 0:00:02]} 59. Nf4 {[%clk 0:00:17]}  Ne2+ {[%clk 0:00:03]} 60. Nxe2 {[%clk 0:00:17]}  Ke6 {[%clk 0:00:04]} 61. Kd3 {[%clk 0:00:15]}  Kf6 {[%clk 0:00:04]} 62. Nc3 {[%clk 0:00:16]}  g5 {[%clk 0:00:05]} 63. Nxb5 {[%clk 0:00:16]}  gxh4 {[%clk 0:00:05]} 64. gxh4 {[%clk 0:00:16]}  Ke6 {[%clk 0:00:04]} 65. Nc3 {[%clk 0:00:17]}  Kd7 {[%clk 0:00:05]} 66. Nd5 {[%clk 0:00:18]}  Kd6 {[%clk 0:00:06]} 67. Kc4 {[%clk 0:00:19]}  Kc6 {[%clk 0:00:06]} 68. b5+ {[%clk 0:00:20]}  Kb7 {[%clk 0:00:06]} 69. Kc5 {[%clk 0:00:21]}  Kc8 {[%clk 0:00:07]} 70. Kd6 {[%clk 0:00:21]}  Kb7 {[%clk 0:00:06]} 71. Kxe5 {[%clk 0:00:22]}  Kb8 {[%clk 0:00:06]} 72. Kf5 {[%clk 0:00:23]}  Kb7 {[%clk 0:00:07]} 73. Kg5 {[%clk 0:00:24]}  Kb8 {[%clk 0:00:08]} 74. Kxh5 {[%clk 0:00:25]}  Kb7 {[%clk 0:00:08]} 75. Kg6 {[%clk 0:00:26]}  Kb8 {[%clk 0:00:09]} 76. Kg7 {[%clk 0:00:27]}  Kb7 {[%clk 0:00:09]} 77. h5 {[%clk 0:00:27]}  Kb8 {[%clk 0:00:09]} 78. h6 {[%clk 0:00:28]}  Kb7 {[%clk 0:00:10]} 79. h7 {[%clk 0:00:29]}  Kb8 {[%clk 0:00:10]} 80. e5 {[%clk 0:00:30]}  Kb7 {[%clk 0:00:10]} 81. e6 {[%clk 0:00:31]}  Kb8 {[%clk 0:00:11]} 82. Kf7 {[%clk 0:00:32]}  Kb7 {[%clk 0:00:12]} 83. Ke7 {[%clk 0:00:33]}  Kb8 {[%clk 0:00:13]} 84. Kd7 {[%clk 0:00:34]}  Kb7 {[%clk 0:00:13]} 85. Kd6 {[%clk 0:00:30]}  Ka7 {[%clk 0:00:12]} 86. Kc6 {[%clk 0:00:29]}  Ka8 {[%clk 0:00:12]} 87. Kb6 {[%clk 0:00:28]}  Kb8 {[%clk 0:00:11]} 88. e7 {[%clk 0:00:28]}  Kc8 {[%clk 0:00:10]} 89. e8=Q# {[%clk 0:00:28]} 1-0


[Site "https://www.chess.com"]

[Event "Titled Tuesday Blitz July 18 Late 2023"]
[White "Joubert, Dantelle"]
[Black "Gatterer, Florian"]
[WhiteFideId "14310813"]
[BlackFideId "811688"]
[WhiteElo "2068"]
[BlackElo "2417"]
[Result "0-1"]
[Round "4"]
[TimeControl "180+2"]
[Date "2023.07.18"]
[WhiteClock "0:00:46"]
[BlackClock "0:01:25"]
[Board "154"]

1. e4 {[%clk 0:02:52]}  c5 {[%clk 0:02:57]} 2. c3 {[%clk 0:02:51]}  d5 {[%clk 0:02:56]} 3. exd5 {[%clk 0:02:46]}  Qxd5 {[%clk 0:02:57]} 4. d4 {[%clk 0:02:44]}  Nf6 {[%clk 0:02:57]} 5. Nf3 {[%clk 0:02:37]}  e6 {[%clk 0:02:56]} 6. Bb5+ {[%clk 0:02:32]}  Bd7 {[%clk 0:02:55]} 7. Bxd7+ {[%clk 0:02:25]}  Nbxd7 {[%clk 0:02:54]} 8. O-O {[%clk 0:02:25]}  Be7 {[%clk 0:02:54]} 9. dxc5 {[%clk 0:02:24]}  Nxc5 {[%clk 0:02:51]} 10. Bg5 {[%clk 0:02:16]}  Rd8 {[%clk 0:02:46]} 11. Na3 {[%clk 0:01:59]}  a6 {[%clk 0:02:40]} 12. Qe2 {[%clk 0:01:56]}  O-O {[%clk 0:02:36]} 13. Rfd1 {[%clk 0:01:54]}  Qf5 {[%clk 0:02:23]} 14. Be3 {[%clk 0:01:22]}  h6 {[%clk 0:02:18]} 15. Nd4 {[%clk 0:01:16]}  Qe4 {[%clk 0:02:12]} 16. h3 {[%clk 0:01:09]}  Nd5 {[%clk 0:02:10]} 17. Bc1 {[%clk 0:01:00]}  Qxe2 {[%clk 0:02:05]} 18. Nxe2 {[%clk 0:00:59]}  Na4 {[%clk 0:01:32]} 19. Bd2 {[%clk 0:00:46]}  Nxb2 {[%clk 0:01:25]} 0-1


[Site "https://www.chess.com"]

[Event "Titled Tuesday Blitz July 18 Late 2023"]
[White "Floresvillar Gonzalez, Luis Migu"]
[Black "Mazurkiewicz, Michal"]
[WhiteFideId "5100542"]
[BlackFideId "1124943"]
[WhiteElo "2082"]
[BlackElo "2413"]
[Result "0-1"]
[Round "4"]
[TimeControl "180+2"]
[Date "2023.07.18"]
[WhiteClock "0:00:10"]
[BlackClock "0:00:23"]
[Board "155"]

1. e4 {[%clk 0:02:49]}  d6 {[%clk 0:02:59]} 2. Nf3 {[%clk 0:02:48]}  Nf6 {[%clk 0:02:59]} 3. Nc3 {[%clk 0:02:46]}  c6 {[%clk 0:02:58]} 4. Bc4 {[%clk 0:02:45]}  b5 {[%clk 0:02:57]} 5. Bd3 {[%clk 0:02:43]}  e5 {[%clk 0:02:57]} 6. a3 {[%clk 0:02:43]}  Be7 {[%clk 0:02:57]} 7. b4 {[%clk 0:02:36]}  O-O {[%clk 0:02:57]} 8. Bb2 {[%clk 0:02:36]}  a5 {[%clk 0:02:57]} 9. bxa5 {[%clk 0:02:30]}  Rxa5 {[%clk 0:02:55]} 10. O-O {[%clk 0:02:29]}  Nbd7 {[%clk 0:02:54]} 11. h3 {[%clk 0:02:29]}  Nc5 {[%clk 0:02:53]} 12. Be2 {[%clk 0:02:28]}  Nfxe4 {[%clk 0:02:49]} 13. Nxe4 {[%clk 0:02:27]}  Nxe4 {[%clk 0:02:50]} 14. d4 {[%clk 0:02:27]}  exd4 {[%clk 0:02:10]} 15. Nxd4 {[%clk 0:02:19]}  Bd7 {[%clk 0:02:07]} 16. Bf3 {[%clk 0:02:17]}  d5 {[%clk 0:02:02]} 17. Re1 {[%clk 0:02:15]}  Nd6 {[%clk 0:01:59]} 18. Bc3 {[%clk 0:02:01]}  Ra4 {[%clk 0:01:59]} 19. Bb4 {[%clk 0:01:59]}  Re8 {[%clk 0:01:59]} 20. c3 {[%clk 0:01:51]}  Nc4 {[%clk 0:01:45]} 21. Bxe7 {[%clk 0:01:50]}  Rxe7 {[%clk 0:01:45]} 22. Rxe7 {[%clk 0:01:39]}  Qxe7 {[%clk 0:01:46]} 23. Nc2 {[%clk 0:01:32]}  Nxa3 {[%clk 0:01:41]} 24. Nxa3 {[%clk 0:01:20]}  Rxa3 {[%clk 0:01:41]} 25. Rxa3 {[%clk 0:01:20]}  Qxa3 {[%clk 0:01:42]} 26. Qe1 {[%clk 0:01:14]}  Kf8 {[%clk 0:01:40]} 27. Kh2 {[%clk 0:01:14]}  Qd6+ {[%clk 0:01:39]} 28. g3 {[%clk 0:01:12]}  f6 {[%clk 0:01:40]} 29. h4 {[%clk 0:01:11]}  Qe5 {[%clk 0:01:40]} 30. Qd2 {[%clk 0:01:09]}  Be6 {[%clk 0:01:25]} 31. h5 {[%clk 0:01:08]}  h6 {[%clk 0:01:17]} 32. Kg2 {[%clk 0:01:07]}  c5 {[%clk 0:01:16]} 33. Qd3 {[%clk 0:01:04]}  c4 {[%clk 0:00:55]} 34. Qb1 {[%clk 0:00:58]}  Qxc3 {[%clk 0:00:45]} 35. Qxb5 {[%clk 0:00:58]}  Qe5 {[%clk 0:00:46]} 36. Qc5+ {[%clk 0:00:54]}  Kf7 {[%clk 0:00:45]} 37. Qa7+ {[%clk 0:00:52]}  Kg8 {[%clk 0:00:43]} 38. Qa8+ {[%clk 0:00:51]}  Kh7 {[%clk 0:00:43]} 39. Qa5 {[%clk 0:00:45]}  d4 {[%clk 0:00:31]} 40. Qb4 {[%clk 0:00:36]}  Bd5 {[%clk 0:00:31]} 41. Qb1+ {[%clk 0:00:31]}  f5 {[%clk 0:00:31]} 42. Bxd5 {[%clk 0:00:25]}  Qxd5+ {[%clk 0:00:31]} 43. Kh2 {[%clk 0:00:26]}  d3 {[%clk 0:00:32]} 44. Qb6 {[%clk 0:00:23]}  Qf7 {[%clk 0:00:26]} 45. Qd6 {[%clk 0:00:20]}  Qxh5+ {[%clk 0:00:25]} 46. Kg2 {[%clk 0:00:18]}  Qe8 {[%clk 0:00:23]} 47. Qd4 {[%clk 0:00:10]}  Qe4+ {[%clk 0:00:23]} 0-1


[Site "https://www.chess.com"]

[Event "Titled Tuesday Blitz July 18 Late 2023"]
[White "Rosenberg, Evan S"]
[Black "Baches Garcia, Guillermo"]
[WhiteFideId "2019299"]
[BlackFideId "2209764"]
[WhiteElo "2407"]
[BlackElo "2411"]
[Result "1/2-1/2"]
[Round "4"]
[TimeControl "180+2"]
[Date "2023.07.18"]
[WhiteClock "0:02:43"]
[BlackClock "0:02:48"]
[Board "157"]

1. d4 {[%clk 0:03:00]}  d5 {[%clk 0:03:00]} 2. Nf3 {[%clk 0:03:01]}  e6 {[%clk 0:03:00]} 3. Bg5 {[%clk 0:03:01]}  Be7 {[%clk 0:02:58]} 4. Bxe7 {[%clk 0:03:00]}  Qxe7 {[%clk 0:02:58]} 5. c3 {[%clk 0:02:58]}  Nf6 {[%clk 0:02:57]} 6. Nbd2 {[%clk 0:02:59]}  Nbd7 {[%clk 0:02:52]} 7. e3 {[%clk 0:02:59]}  e5 {[%clk 0:02:51]} 8. dxe5 {[%clk 0:02:59]}  Nxe5 {[%clk 0:02:52]} 9. Nxe5 {[%clk 0:03:00]}  Qxe5 {[%clk 0:02:52]} 10. Bd3 {[%clk 0:02:59]}  O-O {[%clk 0:02:51]} 11. Qc2 {[%clk 0:02:43]}  c5 {[%clk 0:02:48]} 1/2-1/2


[Site "https://www.chess.com"]

[Event "Titled Tuesday Blitz July 18 Late 2023"]
[White "Herbst, Richard"]
[Black "Rottenwohrer Suarez, Juan"]
[WhiteFideId "2041251"]
[BlackFideId "32068182"]
[WhiteElo "2317"]
[BlackElo "2521"]
[Result "1-0"]
[Round "4"]
[TimeControl "180+2"]
[Date "2023.07.18"]
[WhiteClock "0:01:27"]
[BlackClock "0:00:00"]
[Board "160"]

1. e4 {[%clk 0:02:59]}  e6 {[%clk 0:02:39]} 2. d4 {[%clk 0:02:58]}  d5 {[%clk 0:02:40]} 3. e5 {[%clk 0:02:59]}  c5 {[%clk 0:02:39]} 4. c3 {[%clk 0:02:59]}  Ne7 {[%clk 0:02:33]} 5. Na3 {[%clk 0:02:57]}  Nf5 {[%clk 0:02:29]} 6. Nc2 {[%clk 0:02:57]}  Nc6 {[%clk 0:02:26]} 7. Nf3 {[%clk 0:02:57]}  cxd4 {[%clk 0:02:22]} 8. cxd4 {[%clk 0:02:55]}  Qb6 {[%clk 0:02:20]} 9. Be2 {[%clk 0:02:52]}  Bd7 {[%clk 0:02:20]} 10. O-O {[%clk 0:02:52]}  Rc8 {[%clk 0:02:15]} 11. Re1 {[%clk 0:02:40]}  Nb4 {[%clk 0:02:12]} 12. Nxb4 {[%clk 0:02:33]}  Bxb4 {[%clk 0:02:13]} 13. Rf1 {[%clk 0:02:27]}  Bb5 {[%clk 0:02:13]} 14. a3 {[%clk 0:02:13]}  Be7 {[%clk 0:02:04]} 15. Re1 {[%clk 0:02:08]}  Bxe2 {[%clk 0:02:01]} 16. Rxe2 {[%clk 0:02:09]}  Rc4 {[%clk 0:02:01]} 17. Be3 {[%clk 0:02:00]}  O-O {[%clk 0:01:58]} 18. Rc1 {[%clk 0:01:52]}  Rfc8 {[%clk 0:01:55]} 19. Rxc4 {[%clk 0:01:52]}  Rc5 {[%clk 0:01:56]} 20. dxc5 {[%clk 0:01:48]}  Qc6 {[%clk 0:01:12]} 21. Rc1 {[%clk 0:01:45]}  a5 {[%clk 0:01:04]} 22. Nd4 {[%clk 0:01:43]}  Nxd4 {[%clk 0:01:02]} 23. Bxd4 {[%clk 0:01:43]}  Bd8 {[%clk 0:01:00]} 24. Re3 {[%clk 0:01:41]}  Bg5 {[%clk 0:00:57]} 25. Rg3 {[%clk 0:01:40]}  Bxc1 {[%clk 0:00:54]} 26. Qxc1 {[%clk 0:01:41]}  Qa4 {[%clk 0:00:54]} 27. h4 {[%clk 0:01:39]}  Qxd4 {[%clk 0:00:39]} 28. c6 {[%clk 0:01:36]}  bxc6 {[%clk 0:00:37]} 29. Qxc6 {[%clk 0:01:35]}  h6 {[%clk 0:00:37]} 30. Qe8+ {[%clk 0:01:35]}  Kh7 {[%clk 0:00:34]} 31. Qxf7 {[%clk 0:01:36]}  Qxe5 {[%clk 0:00:34]} 32. h5 {[%clk 0:01:32]}  Qxb2 {[%clk 0:00:30]} 33. Qg6+ {[%clk 0:01:29]}  Kh8 {[%clk 0:00:24]} 34. Qxe6 {[%clk 0:01:28]}  Qd4 {[%clk 0:00:12]} 35. Qe8+ {[%clk 0:01:28]}  Kh7 {[%clk 0:00:11]} 36. Qg6+ {[%clk 0:01:29]}  Kh8 {[%clk 0:00:00]} 37. Re3 {[%clk 0:01:27]} 1-0


[Site "https://www.chess.com"]

[Event "Titled Tuesday Blitz July 18 Late 2023"]
[White "Liu, Casper"]
[Black "Lopez Idarraga, Daniel Eduardo"]
[WhiteFideId "1454153"]
[BlackFideId "4405501"]
[WhiteElo "2457"]
[BlackElo "2305"]
[Result "0-1"]
[Round "4"]
[TimeControl "180+2"]
[Date "2023.07.18"]
[WhiteClock "0:00:55"]
[BlackClock "0:01:07"]
[Board "161"]

1. e4 {[%clk 0:03:00]}  c6 {[%clk 0:03:00]} 2. d4 {[%clk 0:02:59]}  d5 {[%clk 0:03:01]} 3. e5 {[%clk 0:02:58]}  Bf5 {[%clk 0:03:01]} 4. Nh3 {[%clk 0:02:53]}  e6 {[%clk 0:02:26]} 5. Nf4 {[%clk 0:02:52]}  h6 {[%clk 0:02:23]} 6. Bd3 {[%clk 0:02:50]}  Bxd3 {[%clk 0:02:22]} 7. Qxd3 {[%clk 0:02:50]}  c5 {[%clk 0:02:23]} 8. c3 {[%clk 0:02:47]}  Qb6 {[%clk 0:02:23]} 9. Na3 {[%clk 0:02:40]}  cxd4 {[%clk 0:02:22]} 10. Nb5 {[%clk 0:02:37]}  dxc3 {[%clk 0:02:20]} 11. Be3 {[%clk 0:02:37]}  cxb2 {[%clk 0:02:14]} 12. Rb1 {[%clk 0:02:28]}  Qd8 {[%clk 0:01:28]} 13. Rxb2 {[%clk 0:01:27]}  Nc6 {[%clk 0:01:26]} 14. O-O {[%clk 0:01:20]}  Nxe5 {[%clk 0:01:25]} 15. Qc3 {[%clk 0:01:11]}  Nc4 {[%clk 0:01:23]} 16. Re2 {[%clk 0:01:11]}  Nf6 {[%clk 0:01:20]} 17. Bxa7 {[%clk 0:01:04]}  Be7 {[%clk 0:01:16]} 18. Qd4 {[%clk 0:00:59]}  O-O {[%clk 0:01:12]} 19. Bb6 {[%clk 0:00:59]}  Qxb6 {[%clk 0:01:07]} 20. Nxe6 {[%clk 0:00:55]} 0-1


[Site "https://www.chess.com"]

[Event "Titled Tuesday Blitz July 18 Late 2023"]
[White "Mikhalsky, Vladimir"]
[Black "Ricaurte Lopez, Juan Carlos"]
[WhiteFideId "14144352"]
[BlackFideId "3600327"]
[WhiteElo "2405"]
[BlackElo "2140"]
[Result "1-0"]
[Round "4"]
[TimeControl "180+2"]
[Date "2023.07.18"]
[WhiteClock "0:00:22"]
[BlackClock "0:00:00"]
[Board "164"]

1. d4 {[%clk 0:02:59]}  Nf6 {[%clk 0:02:56]} 2. c4 {[%clk 0:02:59]}  e6 {[%clk 0:02:57]} 3. Nf3 {[%clk 0:02:58]}  b6 {[%clk 0:02:53]} 4. g3 {[%clk 0:02:58]}  Bb7 {[%clk 0:02:53]} 5. Bg2 {[%clk 0:02:58]}  Bb4+ {[%clk 0:02:46]} 6. Bd2 {[%clk 0:02:58]}  Be7 {[%clk 0:02:43]} 7. O-O {[%clk 0:02:57]}  O-O {[%clk 0:02:43]} 8. b4 {[%clk 0:02:47]}  c5 {[%clk 0:02:39]} 9. dxc5 {[%clk 0:02:39]}  bxc5 {[%clk 0:02:38]} 10. b5 {[%clk 0:02:40]}  d5 {[%clk 0:02:33]} 11. a4 {[%clk 0:02:39]}  d4 {[%clk 0:02:27]} 12. e3 {[%clk 0:02:39]}  a6 {[%clk 0:02:21]} 13. Na3 {[%clk 0:02:25]}  Ne4 {[%clk 0:02:02]} 14. Ne5 {[%clk 0:02:14]}  Bf6 {[%clk 0:01:55]} 15. Ng4 {[%clk 0:02:10]}  Be7 {[%clk 0:01:48]} 16. exd4 {[%clk 0:02:09]}  cxd4 {[%clk 0:01:44]} 17. Re1 {[%clk 0:02:09]}  f5 {[%clk 0:01:36]} 18. Ne5 {[%clk 0:02:08]}  Bxa3 {[%clk 0:01:18]} 19. Rxa3 {[%clk 0:02:04]}  Qd6 {[%clk 0:01:16]} 20. Ra1 {[%clk 0:01:10]}  Qxe5 {[%clk 0:01:15]} 21. f3 {[%clk 0:01:10]}  Nd7 {[%clk 0:01:10]} 22. fxe4 {[%clk 0:01:00]}  fxe4 {[%clk 0:01:09]} 23. Bf4 {[%clk 0:00:56]}  Rxf4 {[%clk 0:00:52]} 24. gxf4 {[%clk 0:00:55]}  Qxf4 {[%clk 0:00:51]} 25. Qxd4 {[%clk 0:00:53]}  Nf6 {[%clk 0:00:46]} 26. Rf1 {[%clk 0:00:50]}  Qg5 {[%clk 0:00:42]} 27. Qb6 {[%clk 0:00:40]}  Bc8 {[%clk 0:00:25]} 28. Rad1 {[%clk 0:00:30]}  Bd7 {[%clk 0:00:20]} 29. Rxd7 {[%clk 0:00:27]}  Nxd7 {[%clk 0:00:18]} 30. Qxe6+ {[%clk 0:00:27]}  Kh8 {[%clk 0:00:17]} 31. Qxd7 {[%clk 0:00:27]}  h6 {[%clk 0:00:15]} 32. Qd5 {[%clk 0:00:24]}  Qe3+ {[%clk 0:00:11]} 33. Kh1 {[%clk 0:00:24]}  Rc8 {[%clk 0:00:09]} 34. Qxe4 {[%clk 0:00:22]}  Qxe4 {[%clk 0:00:00]} 35. Bxe4 {[%clk 0:00:22]} 1-0


[Site "https://www.chess.com"]

[Event "Titled Tuesday Blitz July 18 Late 2023"]
[White "Cardenas Carbajal, Nilson"]
[Black "Troff, Kayden"]
[WhiteFideId "8401128"]
[BlackFideId "2047896"]
[WhiteElo "2173"]
[BlackElo "2781"]
[Result "1-0"]
[Round "4"]
[TimeControl "180+2"]
[Date "2023.07.18"]
[WhiteClock "0:00:50"]
[BlackClock "0:00:24"]
[Board "165"]

1. e4 {[%clk 0:02:57]}  c5 {[%clk 0:02:57]} 2. d4 {[%clk 0:02:55]}  cxd4 {[%clk 0:02:57]} 3. c3 {[%clk 0:02:56]}  d3 {[%clk 0:02:56]} 4. Bxd3 {[%clk 0:02:55]}  g6 {[%clk 0:02:57]} 5. Nf3 {[%clk 0:02:52]}  Nc6 {[%clk 0:02:56]} 6. O-O {[%clk 0:02:49]}  d6 {[%clk 0:02:56]} 7. h3 {[%clk 0:02:47]}  Bg7 {[%clk 0:02:55]} 8. a4 {[%clk 0:02:47]}  Nf6 {[%clk 0:02:53]} 9. Na3 {[%clk 0:02:45]}  O-O {[%clk 0:02:51]} 10. Qe2 {[%clk 0:02:44]}  Nd7 {[%clk 0:02:44]} 11. Bg5 {[%clk 0:02:35]}  Nc5 {[%clk 0:02:41]} 12. Bc2 {[%clk 0:02:32]}  Be6 {[%clk 0:02:34]} 13. Rfd1 {[%clk 0:02:30]}  Rc8 {[%clk 0:02:21]} 14. Nb5 {[%clk 0:02:25]}  a6 {[%clk 0:02:21]} 15. Nbd4 {[%clk 0:02:22]}  Nxd4 {[%clk 0:02:21]} 16. Nxd4 {[%clk 0:02:05]}  Re8 {[%clk 0:02:14]} 17. a5 {[%clk 0:02:01]}  Qc7 {[%clk 0:02:09]} 18. b4 {[%clk 0:01:39]}  Nd7 {[%clk 0:01:52]} 19. Nxe6 {[%clk 0:01:37]}  fxe6 {[%clk 0:01:53]} 20. Qg4 {[%clk 0:01:32]}  Nf8 {[%clk 0:01:38]} 21. Bb3 {[%clk 0:01:29]}  Qxc3 {[%clk 0:01:36]} 22. Bxe6+ {[%clk 0:01:25]}  Nxe6 {[%clk 0:01:36]} 23. Qxe6+ {[%clk 0:01:25]}  Kh8 {[%clk 0:01:05]} 24. Rac1 {[%clk 0:01:19]}  Qe5 {[%clk 0:01:05]} 25. Rxc8 {[%clk 0:00:50]}  Qxe6 {[%clk 0:01:00]} 26. Rxe8+ {[%clk 0:00:49]}  Bf8 {[%clk 0:00:24]} 27. Bh6 {[%clk 0:00:50]} 1-0


[Site "https://www.chess.com"]